fUST/lending_fUST_20240119
["ID","MTS","AMOUNT","RATE_DAILY","PERIOD"]
[312088910,1705608655523,-500.0,0.00041643,30]
[312088911,1705608655532,-500.0,0.00041643,30]
[312088912,1705608655541,-500.0,0.00041643,30]
[312088913,1705608655551,-500.0,0.00041643,30]
[312088914,1705608655560,-500.0,0.00041643,30]
[312088915,1705608655569,-680.59,0.00041643,30]
[312088916,1705608655579,-500.0,0.00041643,30]
[312088917,1705608655588,-500.0,0.00041643,30]
[312088918,1705608655598,-500.0,0.00041643,30]
[312088919,1705608655608,-500.0,0.00041643,30]
[312088920,1705608655618,-500.0,0.00041643,30]
[312088921,1705608655627,-500.0,0.00041643,30]
[312088922,1705608655636,-500.0,0.00041643,30]
[312088923,1705608655646,-351.86916281,0.00041643,30]
[312088924,1705608655656,-605.0,0.00041643,30]
[312088925,1705608655665,-500.0,0.00041643,30]
[312088926,1705608655675,-215.19498296,0.00041643,5]
[312088927,1705608655684,-500.0,0.00041643,30]
[312088928,1705608655694,-500.0,0.00041643,30]
[312088929,1705608655703,-500.0,0.00041643,30]
[312088930,1705608655713,-282.28640194,0.00041643,30]
[312088931,1705608655722,-500.0,0.00041643,30]
[312088932,1705608655731,-1084.63,0.00041643,30]
[312088933,1705608655740,-500.0,0.00041643,30]
[312088934,1705608655750,-500.0,0.00041643,30]
[312088935,1705608655759,-500.0,0.00041643,30]
[312088936,1705608655769,-500.0,0.00041643,30]
[312088937,1705608655779,-500.0,0.00041643,30]
[312088938,1705608655788,-500.0,0.00041643,30]
[312088939,1705608655798,-328.21999416,0.00041643,30]
[312088940,1705608655808,-500.0,0.00041643,30]
[312088941,1705608655816,-704.01,0.00041643,14]
[312088942,1705608655826,-634.82,0.00041643,30]
[312088943,1705608655835,-500.0,0.00041643,30]
[312088944,1705608655844,-500.0,0.00041643,30]
[312088945,1705608655853,-500.0,0.00041643,30]
[312088946,1705608655862,-500.0,0.00041643,30]
[312088947,1705608655871,-500.0,0.00041643,30]
[312088948,1705608655880,-501.73625022,0.00041643,30]
[312088949,1705608655889,-500.0,0.00041643,30]
[312088950,1705608655898,-500.0,0.00041643,30]
[312088951,1705608655907,-500.0,0.00041643,30]
[312088952,1705608655917,-500.0,0.00041643,30]
[312088953,1705608655926,-500.0,0.00041643,30]
[312088954,1705608655935,-514.11614301,0.00041643,30]
[312088955,1705608655944,-500.0,0.00041643,30]
[312088956,1705608655953,-340.85441833,0.00041643,30]
[312088957,1705608655962,-500.0,0.00041643,30]
[312088958,1705608655971,-500.0,0.00041643,30]
[312088959,1705608655980,-500.0,0.00041643,30]
[312088960,1705608655990,-500.0,0.00041643,30]
[312088961,1705608655999,-1196.8,0.00041643,30]
[312088962,1705608656008,-500.0,0.00041643,30]
[312088963,1705608656018,-500.0,0.00041643,30]
[312088964,1705608656028,-500.0,0.00041643,30]
[312088965,1705608656037,-1384.52,0.00041643,30]
[312088966,1705608656047,-611.96,0.00041643,30]
[312088967,1705608656057,-500.0,0.00041643,30]
[312088968,1705608656066,-502.79057372,0.00041643,30]
[312088969,1705608656075,-2354.22,0.00041643,30]
[312088970,1705608656084,-500.0,0.00041643,30]
[312088971,1705608656094,-644.16,0.00041643,30]
[312088972,1705608656103,-426.66271985,0.00041643,30]
[312088973,1705608656113,-500.0,0.00041643,30]
[312088974,1705608656122,-184.28810456,0.00041643,30]
[312088975,1705608656131,-500.0,0.00041643,30]
[312088976,1705608656141,-500.0,0.00041643,30]
[312088977,1705608656150,-500.0,0.00041643,30]
[312088978,1705608656160,-501.57,0.00041643,30]
[312088979,1705608656169,-500.0,0.00041643,30]
[312088980,1705608656178,-500.0,0.00041643,30]
[312088981,1705608656187,-1129.81,0.00041643,30]
[312088982,1705608656197,-2856.74,0.00041643,30]
[312088983,1705608656209,-500.0,0.00041643,30]
[312088984,1705608656218,-500.0,0.00041643,30]
[312088985,1705608656228,-23764.01,0.00041643,14]
[312088986,1705608656237,-2945.88,0.00041643,30]
[312088987,1705608656247,-500.0,0.00041643,30]
[312088988,1705608656256,-500.0,0.00041643,30]
[312088989,1705608656265,-500.0,0.00041643,30]
[312088990,1705608656274,-500.74779451,0.00041643,30]
[312088991,1705608656284,-3286.51,0.00041643,30]
[312088992,1705608656295,-2407.5,0.00041643,30]
[312088993,1705608656304,-5702.17,0.00041643,30]
[312088994,1705608656313,-500.0,0.00041643,30]
[312088995,1705608656323,-500.0,0.00041643,30]
[312088996,1705608656332,-500.0,0.00041643,30]
[312088997,1705608656342,-500.0,0.00041643,30]
[312088998,1705608656352,-1088.91,0.00041643,30]
[312088999,1705608656361,-500.0,0.00041643,30]
[312089000,1705608656370,-500.0,0.00041643,30]
[312089001,1705608656382,-500.0,0.00041643,30]
[312089002,1705608656393,-725.73,0.00041643,30]
[312089003,1705608656402,-500.0,0.00041643,30]
[312089004,1705608656411,-500.0,0.00041643,30]
[312089005,1705608656421,-500.0,0.00041643,30]
[312089006,1705608656430,-613.20896247,0.00041643,30]
[312089007,1705608656440,-150.0,0.00041643,30]
[312089008,1705608656450,-500.0,0.00041643,20]
[312089009,1705608656459,-500.0,0.00041643,30]
[312089010,1705608656468,-1062.13,0.00041643,30]
[312089011,1705608656478,-500.0,0.00041643,30]
[312089012,1705608656487,-1219.76,0.00041643,30]
[312089013,1705608656496,-14825.1,0.00041643,30]
[312089014,1705608656506,-1577.79,0.00041643,30]
[312089015,1705608656514,-4998.78,0.00041643,30]
[312089016,1705608656524,-500.0,0.00041643,30]
[312089017,1705608656532,-500.0,0.00041643,30]
[312089018,1705608656541,-500.0,0.00041643,30]
[312089019,1705608656550,-500.0,0.00041643,30]
[312089020,1705608656560,-353.52786703,0.00041643,30]
[312089021,1705608656569,-500.0,0.00041643,30]
[312089022,1705608656578,-500.0,0.00041643,30]
[312089023,1705608656587,-500.0,0.00041643,30]
[312089024,1705608656597,-500.0,0.00041643,30]
[312089025,1705608656606,-500.0,0.00041643,30]
[312089026,1705608656615,-500.0,0.00041643,30]
[312089027,1705608656624,-500.0,0.00041643,30]
[312089028,1705608656633,-500.0,0.00041643,30]
[312089029,1705608656643,-7008.26,0.00041643,30]
[312089030,1705608656652,-1236.92,0.00041643,30]
[312089031,1705608656662,-500.0,0.00041643,30]
[312089032,1705608656671,-500.0,0.00041643,30]
[312089033,1705608656680,-537.24,0.00041643,30]
[312089034,1705608656690,-6394.2,0.00041643,30]
[312089035,1705608656699,-500.0,0.00041643,30]
[312089036,1705608656708,-500.0,0.00041643,30]
[312089037,1705608656718,-883.38,0.00041643,30]
[312089038,1705608656728,-500.0,0.00041643,30]
[312089039,1705608656737,-500.0,0.00041643,30]
[312089040,1705608656746,-205.71834794,0.00041643,30]
[312089041,1705608656755,-500.0,0.00041643,30]
[312089042,1705608656764,-500.0,0.00041643,30]
[312089043,1705608656774,-500.0,0.00041643,30]
[312089044,1705608656784,-2063.25,0.00041643,30]
[312089045,1705608656793,-502.77780565,0.00041643,30]
[312089046,1705608656803,-500.0,0.00041643,5]
[312089047,1705608656813,-500.0,0.00041643,30]
[312089048,1705608656822,-500.0,0.00041643,30]
[312089049,1705608656831,-500.0,0.00041643,30]
[312089050,1705608656840,-500.0,0.00041643,30]
[312089051,1705608656850,-500.0,0.00041643,30]
[312089052,1705608656859,-500.0,0.00041643,30]
[312089053,1705608656868,-500.0,0.00041643,30]
[312089054,1705608656877,-500.0,0.00041643,30]
[312089055,1705608656886,-230.7888052,0.00041643,30]
[312089056,1705608656896,-502.67519078,0.00041643,30]
[312089057,1705608656905,-512.11337829,0.00041643,30]
[312089058,1705608656914,-1745.55,0.00041643,30]
[312089059,1705608656923,-500.0,0.00041643,30]
[312089060,1705608656932,-866.39,0.00041643,30]
[312089061,1705608656942,-2620.78,0.00041643,30]
[312089062,1705608656951,-500.0,0.00041643,30]
[312089063,1705608656960,-500.0,0.00041643,30]
[312089064,1705608656970,-541.15127612,0.00041643,30]
[312089065,1705608656979,-501.60575561,0.00041643,30]
[312089066,1705608656988,-502.45872022,0.00041643,30]
[312089067,1705608656997,-2132.43,0.00041643,30]
[312089068,1705608657006,-3218.98,0.00041643,30]
[312089069,1705608657015,-3343.02,0.00041643,30]
[312089070,1705608657024,-500.0,0.00041643,30]
[312089071,1705608657034,-500.0,0.00041643,30]
[312089072,1705608657044,-500.0,0.00041643,7]
[312089073,1705608657053,-500.0,0.00041643,2]
[312089074,1705608657062,-503.62839991,0.00041643,30]
[312089075,1705608657071,-500.0,0.00041643,2]
[312089076,1705608657081,-151.0,0.00041643,7]
[312089077,1705608657091,-151.0,0.00041643,7]
[312089078,1705608657100,-151.0,0.00041643,7]
[312089079,1705608657109,-151.0,0.00041643,7]
[312089080,1705608657118,-151.0,0.00041643,7]
[312089081,1705608657129,-286.04534493,0.00041643,7]
[312089082,1705608657138,-3623.526008,0.00041643,7]
[312089083,1705608657148,-3623.526008,0.00041643,7]
[312089084,1705608657157,-3623.526008,0.00041643,7]
[312089085,1705608657166,-3623.526008,0.00041643,7]
[312089086,1705608657176,-266.666712,0.00041643,7]
[312089087,1705608657185,-162.233444,0.00041644,2]
[312089088,1705608657195,-151.0,0.00041652,21]
[312089089,1705608657208,-151.0,0.00041695,21]
[312089090,1705608657217,-151.0,0.00041737,21]
[312089091,1705608657226,-151.0,0.0004178,21]
[312089092,1705608657235,-2119.75962423,0.000418,30]
[312089093,1705608657245,-11226.75463028,0.000418,12]
[312089094,1705608657254,-1677.4,0.00041817,14]
[312089095,1705608657263,-150.3,0.00041817,14]
[312089096,1705608657272,-181.66,0.00041817,14]
[312089097,1705608657281,-199.14,0.00041817,14]
[312089098,1705608657292,-98.05538846,0.00041823,21]
[312089099,1705608657312,-52.94461154,0.00041823,21]
[312089100,1705608657321,-151.0,0.00041866,21]
[312089101,1705608657330,-151.0,0.00041909,21]
[312089102,1705608657338,-151.0,0.00041917,7]
[312089103,1705608657348,-151.0,0.00041917,7]
[312089104,1705608657357,-3623.526008,0.00041917,7]
[312089105,1705608657366,-3623.526008,0.00041917,7]
[312089106,1705608657375,-496.66696298,0.00041917,30]
[312089107,1705608657385,-500.0,0.00041917,30]
[312089108,1705608657395,-497.72312481,0.00041917,7]
[312089109,1705608657404,-500.0,0.00041917,30]
[312089110,1705608657414,-500.0,0.00041917,30]
[312089111,1705608657423,-572.06454307,0.00041917,30]
[312089112,1705608657432,-500.0,0.00041917,30]
[312089113,1705608657441,-590.24118284,0.00041917,30]
[312089114,1705608657521,-500.0,0.00041917,30]
[312089115,1705608657530,-478.1107843,0.00041917,30]
[312089116,1705608657540,-636.32,0.00041917,30]
[312089117,1705608657549,-500.0,0.00041917,30]
[312089118,1705608657558,-500.0,0.00041917,30]
[312089119,1705608657567,-833.7,0.00041917,30]
[312089120,1705608657577,-500.0,0.00041917,30]
[312089121,1705608657586,-500.0,0.00041917,2]
[312089122,1705608657596,-647.47232055,0.00041917,30]
[312089123,1705608657606,-398.41307026,0.00041917,30]
[312089124,1705608657615,-500.0,0.00041917,30]
[312089125,1705608657625,-500.0,0.00041917,7]
[312089126,1705608657634,-607.55,0.00041917,30]
[312089127,1705608657643,-506.3624288,0.00041917,30]
[312089128,1705608657652,-500.0,0.00041917,30]
[312089129,1705608657661,-500.0,0.00041917,30]
[312089130,1705608657671,-1543.94,0.00041917,30]
[312089131,1705608657682,-500.0,0.00041917,30]
[312089132,1705608657691,-442.63478118,0.00041917,30]
[312089133,1705608657700,-509.91489581,0.00041917,30]
[312089134,1705608657709,-500.0,0.00041917,30]
[312089135,1705608657718,-451.09637706,0.00041917,30]
[312089136,1705608657727,-500.0,0.00041917,30]
[312089137,1705608657736,-532.23569385,0.00041917,30]
[312089138,1705608657745,-325.00527223,0.00041917,30]
[312089139,1705608657754,-500.0,0.00041917,30]
[312089140,1705608657763,-500.0,0.00041917,30]
[312089141,1705608657772,-500.0,0.00041917,30]
[312089142,1705608657782,-561.96886112,0.00041917,30]
[312089143,1705608657791,-500.0,0.00041917,30]
[312089144,1705608657800,-500.0,0.00041917,30]
[312089145,1705608657810,-500.0,0.00041917,30]
[312089146,1705608657819,-689.99,0.00041917,30]
[312089147,1705608657829,-500.0,0.00041917,30]
[312089148,1705608657838,-950.0,0.00041917,2]
[312089149,1705608657847,-500.0,0.00041917,30]
[312089150,1705608657856,-687.7930736,0.00041917,30]
[312089151,1705608657963,-1036.8469264,0.00041917,30]
[312089152,1705608657972,-291.71035562,0.00041917,30]
[312089153,1705608657982,-500.0,0.00041917,30]
[312089154,1705608657990,-500.0,0.00041917,7]
[312089155,1705608657999,-520.12676777,0.00041917,30]
[312089156,1705608658008,-526.45,0.00041917,30]
[312089157,1705608658017,-502.46348243,0.00041917,30]
[312089158,1705608658026,-500.0,0.00041917,30]
[312089159,1705608658035,-500.0,0.00041917,30]
[312089160,1705608658044,-508.60683973,0.00041917,30]
[312089161,1705608658053,-220.21876738,0.00041917,30]
[312089162,1705608658062,-503.67043007,0.00041917,30]
[312089163,1705608658071,-500.0,0.00041917,30]
[312089164,1705608658080,-761.1164306,0.00041917,30]
[312089165,1705608658092,-193.1635694,0.00041917,30]
[312089166,1705608658101,-509.16992288,0.00041917,30]
[312089167,1705608658110,-500.0,0.00041917,30]
[312089168,1705608658119,-500.0,0.00041917,30]
[312089169,1705608658128,-500.0,0.00041917,30]
[312089170,1705608658137,-500.0,0.00041917,30]
[312089171,1705608658146,-111.81758186,0.00041917,30]
[312089172,1705608658157,-388.18241814,0.00041917,30]
[312089173,1705608658166,-500.0,0.00041917,30]
[312089174,1705608658176,-626.48,0.00041917,30]
[312089175,1705608658185,-500.0,0.00041917,30]
[312089176,1705608658195,-500.0,0.00041917,30]
[312089177,1705608658206,-500.0,0.00041917,30]
[312089178,1705608658216,-502.8530521,0.00041917,30]
[312089179,1705608658225,-500.0,0.00041917,30]
[312089180,1705608658235,-500.0,0.00041917,30]
[312089181,1705608658244,-500.0,0.00041917,30]
[312089182,1705608658254,-500.0,0.00041917,30]
[312089183,1705608658263,-500.0,0.00041917,30]
[312089184,1705608658272,-468.12213723,0.00041917,30]
[312089185,1705608658282,-500.0,0.00041917,30]
[312089186,1705608658293,-500.0,0.00041917,30]
[312089187,1705608658303,-500.0,0.00041917,30]
[312089188,1705608658312,-680.59,0.00041917,30]
[312089189,1705608658321,-500.0,0.00041917,30]
[312089190,1705608658333,-500.0,0.00041917,30]
[312089191,1705608658354,-500.0,0.00041917,30]
[312089192,1705608658364,-504.63498038,0.00041917,30]
[312089193,1705608658382,-500.0,0.00041917,30]
[312089194,1705608658396,-500.0,0.00041917,30]
[312089195,1705608658444,-500.0,0.00041917,30]
[312089196,1705608658454,-605.0,0.00041917,30]
[312089197,1705608658463,-419.93417195,0.00041917,30]
[312089198,1705608658475,-80.06582805,0.00041917,30]
[312089199,1705608658485,-500.0,0.00041917,30]
[312089200,1705608658495,-500.0,0.00041917,30]
[312089201,1705608658504,-527.02771593,0.00041917,30]
[312089202,1705608658513,-500.0,0.00041917,30]
[312089203,1705608658522,-1084.63,0.00041917,30]
[312089204,1705608658531,-500.0,0.00041917,30]
[312089205,1705608658540,-500.0,0.00041917,30]
[312089206,1705608658550,-500.0,0.00041917,30]
[312089207,1705608658560,-500.0,0.00041917,30]
[312089208,1705608658569,-500.0,0.00041917,30]
[312089209,1705608658579,-500.0,0.00041917,30]
[312089210,1705608658591,-500.0,0.00041917,30]
[312089211,1705608658601,-704.01,0.00041917,14]
[312089212,1705608658612,-634.82,0.00041917,30]
[312089213,1705608658623,-500.0,0.00041917,30]
[312089214,1705608658635,-500.0,0.00041917,30]
[312089215,1705608658650,-506.59973582,0.00041917,30]
[312089216,1705608658661,-500.0,0.00041917,30]
[312089217,1705608658671,-502.84870638,0.00041917,30]
[312089218,1705608658681,-500.0,0.00041917,30]
[312089219,1705608658692,-500.0,0.00041917,30]
[312089220,1705608658701,-500.0,0.00041917,30]
[312089221,1705608658711,-500.0,0.00041917,30]
[312089222,1705608658721,-507.35991574,0.00041917,30]
[312089223,1705608658730,-500.0,0.00041917,30]
[312089224,1705608658739,-500.0,0.00041917,30]
[312089225,1705608658749,-428.49523514,0.00041917,30]
[312089226,1705608658758,-500.0,0.00041917,30]
[312089227,1705608658768,-500.0,0.00041917,30]
[312089228,1705608658777,-1196.8,0.00041917,30]
[312089229,1705608658787,-500.0,0.00041917,30]
[312089230,1705608658797,-500.0,0.00041917,30]
[312089231,1705608658807,-500.0,0.00041917,30]
[312089232,1705608658816,-1384.52,0.00041917,30]
[312089233,1705608658826,-611.96,0.00041917,30]
[312089234,1705608658835,-500.0,0.00041917,30]
[312089236,1705608658845,-2354.22,0.00041917,30]
[312089237,1705608658854,-500.0,0.00041917,30]
[312089238,1705608658864,-644.16,0.00041917,30]
[312089239,1705608658873,-500.0,0.00041917,30]
[312089240,1705608658882,-500.0,0.00041917,30]
[312089241,1705608658892,-500.0,0.00041917,30]
[312089242,1705608658901,-500.0,0.00041917,30]
[312089243,1705608658910,-501.57,0.00041917,30]
[312089244,1705608658919,-500.0,0.00041917,30]
[312089245,1705608658929,-495.22708729,0.00041917,30]
[312089246,1705608658939,-1129.81,0.00041917,30]
[312089247,1705608658948,-2856.74,0.00041917,30]
[312089248,1705608658957,-500.0,0.00041917,30]
[312089249,1705608658967,-500.0,0.00041917,30]
[312089250,1705608658976,-23764.01,0.00041917,14]
[312089251,1705608658985,-2945.88,0.00041917,30]
[312089252,1705608658997,-506.15991072,0.00041917,30]
[312089253,1705608659012,-500.0,0.00041917,30]
[312089254,1705608659022,-500.0,0.00041917,30]
[312089255,1705608659031,-3286.51,0.00041917,30]
[312089256,1705608659041,-2407.5,0.00041917,30]
[312089257,1705608659050,-5702.17,0.00041917,30]
[312089258,1705608659060,-500.0,0.00041917,30]
[312089259,1705608659069,-261.51843576,0.00041917,30]
[312089260,1705608659078,-500.0,0.00041917,30]
[312089261,1705608659093,-500.0,0.00041917,30]
[312089262,1705608659103,-1088.91,0.00041917,30]
[312089263,1705608659112,-500.0,0.00041917,30]
[312089264,1705608659122,-627.8606387,0.00041917,30]
[312089265,1705608659130,-500.0,0.00041917,30]
[312089266,1705608659140,-725.73,0.00041917,30]
[312089267,1705608659149,-500.0,0.00041917,30]
[312089268,1705608659159,-572.91252704,0.00041917,30]
[312089269,1705608659168,-502.45845128,0.00041917,30]
[312089270,1705608659177,-150.0,0.00041917,30]
[312089271,1705608659186,-500.0,0.00041917,20]
[312089272,1705608659195,-500.0,0.00041917,30]
[312089273,1705608659205,-1062.13,0.00041917,30]
[312089274,1705608659217,-500.0,0.00041917,30]
[312089275,1705608659226,-1219.76,0.00041917,30]
[312089276,1705608659235,-14825.1,0.00041917,30]
[312089277,1705608659245,-1577.79,0.00041917,30]
[312089278,1705608659254,-4998.78,0.00041917,30]
[312089279,1705608659263,-500.0,0.00041917,30]
[312089280,1705608659272,-500.0,0.00041917,30]
[312089281,1705608659282,-500.0,0.00041917,30]
[312089282,1705608659292,-500.0,0.00041917,30]
[312089283,1705608659301,-500.0,0.00041917,30]
[312089284,1705608659311,-626.98522015,0.00041917,30]
[312089285,1705608659320,-500.0,0.00041917,30]
[312089286,1705608659330,-171.33374652,0.00041917,30]
[312089287,1705608659339,-503.95602076,0.00041917,30]
[312089288,1705608659349,-500.0,0.00041917,30]
[312089289,1705608659357,-512.2992539,0.00041917,30]
[312089290,1705608659367,-7008.26,0.00041917,30]
[312089291,1705608659376,-500.0,0.00041917,30]
[312089292,1705608659385,-1236.92,0.00041917,30]
[312089293,1705608659465,-500.0,0.00041917,30]
[312089294,1705608659475,-500.0,0.00041917,30]
[312089295,1705608659493,-537.24,0.00041917,30]
[312089296,1705608659506,-6394.2,0.00041917,30]
[312089297,1705608659516,-500.0,0.00041917,30]
[312089298,1705608659526,-312.93679802,0.00041917,30]
[312089299,1705608659536,-883.38,0.00041917,30]
[312089300,1705608659546,-500.0,0.00041917,30]
[312089301,1705608659556,-500.0,0.00041917,30]
[312089302,1705608659566,-500.0,0.00041917,30]
[312089303,1705608659576,-500.0,0.00041917,30]
[312089304,1705608659587,-2063.25,0.00041917,30]
[312089305,1705608659597,-500.0,0.00041917,30]
[312089306,1705608659607,-500.0,0.00041917,5]
[312089307,1705608659617,-500.0,0.00041917,30]
[312089308,1705608659627,-500.0,0.00041917,30]
[312089309,1705608659637,-500.0,0.00041917,30]
[312089310,1705608659648,-500.0,0.00041917,30]
[312089311,1705608659658,-500.0,0.00041917,30]
[312089312,1705608659668,-500.0,0.00041917,30]
[312089313,1705608659678,-500.0,0.00041917,30]
[312089314,1705608659688,-500.0,0.00041917,30]
[312089315,1705608659698,-1745.55,0.00041917,30]
[312089316,1705608659708,-866.39,0.00041917,30]
[312089317,1705608659718,-2620.78,0.00041917,30]
[312089318,1705608659729,-500.0,0.00041917,30]
[312089319,1705608659738,-500.0,0.00041917,30]
[312089320,1705608659748,-2132.43,0.00041917,30]
[312089321,1705608659759,-3218.98,0.00041917,30]
[312089322,1705608659769,-3343.02,0.00041917,30]
[312089323,1705608659778,-500.0,0.00041917,30]
[312089324,1705608659789,-539.38432763,0.00041917,30]
[312089325,1705608659798,-500.0,0.00041917,7]
[312089327,1705608659808,-500.0,0.00041917,2]
[312089328,1705608659818,-500.0,0.00041917,2]
[312089329,1705608659828,-151.0,0.00041952,21]
[312089330,1705608659838,-828.0,0.00041969,30]
[312089331,1705608659850,-828.0,0.00041979,30]
[312089332,1705608659862,-828.0,0.00041989,30]
[312089333,1705608659872,-151.0,0.00041994,21]
[312089334,1705608659882,-500.0,0.00041999,120]
[312089335,1705608659891,-500.0,0.00041999,120]
[312089336,1705608659901,-619.14,0.00041999,120]
[312089337,1705608659912,-500.0,0.00041999,120]
[312089338,1705608659922,-500.0,0.00041999,120]
[312089339,1705608659932,-500.0,0.00041999,120]
[312089340,1705608659941,-500.0,0.00041999,120]
[312089341,1705608659951,-500.0,0.00041999,120]
[312089342,1705608659961,-500.0,0.00041999,120]
[312089343,1705608659971,-535.02,0.00041999,120]
[312089344,1705608659980,-500.0,0.00041999,120]
[312089345,1705608659990,-500.0,0.00041999,120]
[312089346,1705608660000,-538.75,0.00041999,120]
[312089347,1705608660009,-150.0,0.00041999,60]
[312089348,1705608660019,-240576.88038517,0.00041999,4]
[312089349,1705608660035,-5619.26792168,0.00041999,4]
[312089350,1705608660047,-15312.6241794,0.00041999,4]
[312089351,1705608660060,-1417.83305986,0.00041999,4]
[312089352,1705608660077,-5065.31465822,0.00041999,4]
[312089353,1705608660090,-2984.3842,0.00041999,4]
[312089354,1705608660103,-11814.40781289,0.00041999,4]
[312089355,1705608660115,-88963.45389088,0.00041999,4]
[312089356,1705608660342,-1000.0,0.00029748,2]
[312089357,1705608660353,-805.43648328,0.0002983,2]
[312089358,1705608660363,-386.32476631,0.00033,2]
[312089359,1705608660373,-1455.37235263,0.00040998,2]
[312089360,1705608660384,-1762.64537149,0.00041093,4]
[312089361,1705608660397,-373.99661569,0.00041093,4]
[312089362,1705608660409,-245.46167624,0.00041093,4]
[312089363,1705608660419,-106.31650715,0.00041094,4]
[312089364,1705608660457,-469.04321713,0.0004101,4]
[312089365,1705608660468,-4507.83193509,0.00041094,4]
[312089366,1705608660479,-1805.19703142,0.00041094,4]
[312089367,1705608660491,-1965.04162237,0.00041094,15]
[312089368,1705608660503,-500.0,0.00041369,30]
[312089369,1705608660514,-500.0,0.00041643,30]
[312089370,1705608660526,-500.0,0.00041917,30]
[312089371,1705608660537,-45585.8482836,0.00041999,4]
[312089372,1705608660550,-41000.0,0.00041999,4]
[312089766,1705609834927,-154.95351395,0.00029997,4]
[312089767,1705609834939,-2813.10332854,0.00029998,2]
[312089768,1705609834949,-1601.89034871,0.00029999,2]
[312089769,1705609834959,-2995.72102978,0.00029999,2]
[312089771,1705609834970,-425.62034809,0.00029999,2]
[312089772,1705609834981,-707.11706178,0.0003,4]
[312089773,1705609834991,-3346.46987709,0.00030001,4]
[312089774,1705609835004,-434.1895,0.00030001,4]
[312089775,1705609835044,-1608.11174932,0.00030001,4]
[312089776,1705609835054,-784.49750688,0.00030002,4]
[312089777,1705609835065,-4718.82684458,0.00030005,3]
[312089779,1705609835075,-1214.92709313,0.00030007,4]
[312089780,1705609835085,-3038.76895187,0.00030036,2]
[312089781,1705609835096,-162.233443,0.00030137,2]
[312089782,1705609835106,-161.523704,0.00030137,2]
[312089783,1705609835116,-154.26436595,0.00030475,7]
[312089784,1705609835126,-199.43269844,0.00031866,2]
[312089785,1705609835136,-152.92708945,0.00031866,7]
[312089786,1705609835150,-175.83203608,0.00031882,2]
[312089787,1705609835160,-154.95351395,0.00032,4]
[312089788,1705609835170,-8770.19822736,0.00032611,6]
[312089789,1705609835179,-8377.24832596,0.00032666,6]
[312089790,1705609835189,-4114.92246103,0.0003274,6]
[312089791,1705609835199,-200.0,0.00032998,15]
[312089792,1705609835209,-171.0,0.00033,2]
[312089793,1705609835219,-153.0,0.000332,2]
[312089794,1705609835230,-153.0,0.000332,2]
[312089795,1705609835240,-153.0,0.000332,2]
[312089796,1705609835251,-153.0,0.000332,2]
[312089797,1705609835260,-280.0,0.00033353,2]
[312089798,1705609835270,-152.92708945,0.00033401,7]
[312089799,1705609835280,-283.30260339,0.00033532,2]
[312089800,1705609835291,-1341.370018,0.00033748,2]
[312089801,1705609835301,-154.26436595,0.00033861,7]
[312089802,1705609835310,-167.847466,0.00033958,2]
[312089804,1705609835320,-154.26436595,0.00034383,7]
[312089805,1705609835330,-591.69239792,0.00035613,2]
[312089806,1705609835339,-6760.97413379,0.00035614,4]
[312089807,1705609835349,-1719.41141957,0.00035614,15]